[Event "8th RTU Open 2018"]
[Site "Riga"]
[Date "2018.08.08"]
[Round "4"]
[White "Ruiz Castillo, Joshua Daniel"]
[Black "Petrosyan, Manuel"]
[Result "1/2-1/2"]
[ECO "B12"]
[WhiteElo "2415"]
[BlackElo "2567"]
[Annotator "ChessBase"]
[PlyCount "120"]
[EventDate "2018.08.06"]
[EventType "swiss"]
[EventCountry "LAT"]
[SourceTitle "playchess.com"]
[Source "ChessBase"]
[SourceQuality "1"]
[TimeControl "5400+30"]

1. e4 {[%emt 0:00:00]} c6 {[%emt 0:00:00]} 2. d4 {[%emt 0:00:00]} d5 {[%emt 0:00:00]} 3. f3 {[%emt 0:00:47]} g6 {[%emt 0:03:13]} 4. Nc3 {[%emt 0:01:29]} Bg7 {[%emt 0:01:14]} 5. Be3 {[%emt 0:00:33]} Qb6 {[%emt 0:09:33]} 6. Qd2 {[%emt 0:09:54]} Qxb2 {[%emt 0:04:04]} 7. Rb1 {[%emt 0:00:05]} Qa3 {[%emt 0:00:05]} 8. exd5 {[%emt 0:00:09]} Nf6 {[%emt 0:02:25]} 9. dxc6 {[%emt 0:01:10]} bxc6 {[%emt 0:00:20]} 10. Bd3 {[%emt 0:12:42]} Ba6 {[%emt 0:10:45]} 11. Nge2 {[%emt 0:00:55]} Nbd7 {[%emt 0:00:58]} 12. Rb3 {[%emt 0:03:01]} Qa5 {[%emt 0:00:17]} 13. Ne4 {[%emt 0:14:18]} Qxd2+ {[%emt 0:01:44]} 14. Kxd2 {[%emt 0:01:53]} Bxd3 {[%emt 0:00:11]} 15. cxd3 {[%emt 0:00:17]} Nd5 {[%emt 0:10:25]} 16. Rc1 {[%emt 0:00:09]} f5 {[%emt 0:06:36]} 17. Ng5 {[%emt 0:03:06]} Bf6 {[%emt 0:06:07]} 18. f4 {[%emt 0:02:08]} O-O {[%emt 0:12:24]} 19. Nf3 {[%emt 0:04:51]} Rfb8 {[%emt 0:06:07]} 20. Ne5 {[%emt 0:08:17]} Rxb3 {[%emt 0:03:24]} 21. axb3 {[%emt 0:00:03]} N7b6 {[%emt 0:00:09]} 22. Rxc6 {[%emt 0:02:40]} Rb8 {[%emt 0:09:11]} 23. Rc5 {[%emt 0:02:59]} e6 {[%emt 0:01:20]} 24. Bf2 {[%emt 0:13:52]} Be7 {[%emt 0:00:26]} 25. Rc6 {[%emt 0:00:12]} Bb4+ {[%emt 0:00:03]} 26. Kd1 {[%emt 0:00:11]} Re8 {[%emt 0:00:16]} 27. Nf3 {[%emt 0:01:11]} h6 {[%emt 0:01:30]} 28. g3 {[%emt 0:01:01]} Kf7 {[%emt 0:01:51]} 29. Be1 {[%emt 0:00:20]} Ne3+ {[%emt 0:01:22]} 30. Kc1 {[%emt 0:00:01]} Bxe1 {[%emt 0:00:07]} 31. Nxe1 {[%emt 0:00:01]} Rc8 {[%emt 0:00:31]} 32. Rxc8 {[%emt 0:00:04]} Nxc8 {[%emt 0:00:03]} 33. Nf3 {[%emt 0:00:18]} Kf6 {[%emt 0:00:08]} 34. Kd2 {[%emt 0:00:07]} Nd5 {[%emt 0:00:06]} 35. h4 {[%emt 0:00:15]} Nce7 {[%emt 0:01:51]} 36. Nc3 {[%emt 0:01:45]} a6 {[%emt 0:03:02]} 37. Na4 {[%emt 0:00:19]} Nc6 {[%emt 0:00:57]} 38. Nc5 {[%emt 0:00:15]} a5 {[%emt 0:00:55]} 39. Nd7+ {[%emt 0:00:05]} Kg7 {[%emt 0:00:47]} 40. Nde5 {[%emt 0:00:13]} Ncb4 {[%emt 0:00:59]} 41. Nc4 {[%emt 0:00:19]} Nc6 {[%emt 0:00:04]} 42. Nfe5 {[%emt 0:00:15]} Nxd4 {[%emt 0:00:14]} 43. Nxa5 {[%emt 0:00:04]} Kf6 {[%emt 0:00:21]} 44. Nec6 {[%emt 0:00:39]} Nb5 {[%emt 0:00:34]} 45. Nc4 {[%emt 0:01:01]} g5 {[%emt 0:00:53]} 46. hxg5+ {[%emt 0:00:02]} hxg5 {[%emt 0:00:03]} 47. Ne3 {[%emt 0:01:09]} Nbc7 {[%emt 0:00:43]} 48. fxg5+ {[%emt 0:00:30]} Kxg5 {[%emt 0:00:13]} 49. b4 {[%emt 0:00:07]} Nxe3 {[%emt 0:01:28]} 50. Kxe3 {[%emt 0:00:01]} Kg4 {[%emt 0:00:06]} 51. Kf2 {[%emt 0:01:05]} f4 {[%emt 0:00:08]} 52. gxf4 {[%emt 0:01:31]} Kxf4 {[%emt 0:00:08]} 53. Nd4 {[%emt 0:00:06]} Ke5 {[%emt 0:00:35]} 54. Nc2 {[%emt 0:01:49]} Nd5 {[%emt 0:00:16]} 55. Kf3 {[%emt 0:00:41]} Nc3 {[%emt 0:00:06]} 56. Ke3 {[%emt 0:00:37]} Kd5 {[%emt 0:00:14]} 57. Na3 {[%emt 0:00:34]} e5 {[%emt 0:02:37]} 58. Kd2 {[%emt 0:02:04]} Na2 {[%emt 0:00:53]} 59. Nc2 {[%emt 0:00:04]} e4 {[%emt 0:00:55]} 60. d4 {[%emt 0:00:04]} Nxb4 {[%emt 0:00:07]} 1/2-1/2

[Event "8th RTU Open 2018"]
[Site "Riga"]
[Date "2018.08.08"]
[Round "4"]
[White "Gokerkan, Cem Kaan"]
[Black "Ter Sahakyan, Samvel"]
[Result "0-1"]
[ECO "B96"]
[WhiteElo "2404"]
[BlackElo "2551"]
[Annotator "ChessBase"]
[PlyCount "72"]
[EventDate "2018.08.06"]
[EventType "swiss"]
[EventCountry "LAT"]
[SourceTitle "playchess.com"]
[Source "ChessBase"]
[SourceQuality "1"]
[TimeControl "5400+30"]

1. e4 {[%emt 0:00:00]} c5 {[%emt 0:00:00]} 2. Nf3 {[%emt 0:00:00]} d6 {[%emt 0:00:00]} 3. d4 {[%emt 0:00:02]} cxd4 {[%emt 0:00:00]} 4. Nxd4 {[%emt 0:00:04]} Nf6 {[%emt 0:00:05]} 5. Nc3 {[%emt 0:00:05]} a6 {[%emt 0:00:06]} 6. Bg5 {[%emt 0:00:47]} e6 {[%emt 0:00:08]} 7. f4 {[%emt 0:00:28]} h6 {[%emt 0:00:12]} 8. Bh4 {[%emt 0:00:10]} Qb6 {[%emt 0:00:06]} 9. Qd2 {[%emt 0:02:09]} Qxb2 {[%emt 0:00:57]} 10. Rb1 {[%emt 0:00:31]} Qa3 {[%emt 0:00:06]} 11. e5 {[%emt 0:00:20]} dxe5 {[%emt 0:00:31]} 12. fxe5 {[%emt 0:00:18]} Nfd7 {[%emt 0:00:27]} 13. Ne4 {[%emt 0:02:44]} Qxa2 {[%emt 0:00:22]} 14. Rd1 {[%emt 0:00:32]} Qd5 {[%emt 0:00:13]} 15. Qe3 {[%emt 0:00:54]} Qxe5 {[%emt 0:00:54]} 16. Be2 {[%emt 0:00:38]} Bc5 {[%emt 0:00:38]} 17. Bg3 {[%emt 0:02:23]} Qd5 {[%emt 0:00:13]} 18. c4 {[%emt 0:08:14]} Bxd4 {[%emt 0:00:14]} 19. Rxd4 {[%emt 0:00:21]} Qa5+ {[%emt 0:00:05]} 20. Rd2 {[%emt 0:02:42]} O-O {[%emt 0:00:13]} 21. Bd6 {[%emt 0:06:39]} f5 {[%emt 0:00:23]} 22. O-O {[%emt 0:36:32]} fxe4 {[%emt 0:15:04]} 23. Bxf8 {[%emt 0:01:07]} Nxf8 {[%emt 0:00:06]} 24. Qf2 {[%emt 0:06:16]} Nbd7 {[%emt 0:14:08]} 25. Qf7+ {[%emt 0:03:02]} Kh7 {[%emt 0:00:42]} 26. Rdd1 {[%emt 0:06:38]} Ng6 {[%emt 0:07:07]} 27. Kh1 {[%emt 0:02:29]} Qc5 {[%emt 0:03:26]} 28. h4 {[%emt 0:15:45]} Qe7 {[%emt 0:04:44]} 29. h5 {[%emt 0:00:22]} Qxf7 {[%emt 0:00:48]} 30. Rxf7 {[%emt 0:00:01]} Nge5 {[%emt 0:00:35]} 31. Re7 {[%emt 0:00:02]} Nf6 {[%emt 0:00:25]} 32. Rf1 {[%emt 0:01:13]} Kg8 {[%emt 0:03:18]} 33. g4 {[%emt 0:00:02]} Bd7 {[%emt 0:03:45]} 34. g5 {[%emt 0:00:07]} Nc6 {[%emt 0:00:21]} 35. gxf6 {[%emt 0:00:51]} Nxe7 {[%emt 0:00:07]} 36. fxe7 {[%emt 0:00:12]} Re8 {[%emt 0:00:10]} 0-1

[Event "8th RTU Open 2018"]
[Site "Riga"]
[Date "2018.08.08"]
[Round "4"]
[White "Lapshun, Yury"]
[Black "Lobanov, Sergei"]
[Result "1/2-1/2"]
[ECO "B24"]
[WhiteElo "2403"]
[BlackElo "2531"]
[Annotator "ChessBase"]
[PlyCount "109"]
[EventDate "2018.08.06"]
[EventType "swiss"]
[EventCountry "LAT"]
[SourceTitle "playchess.com"]
[Source "ChessBase"]
[SourceQuality "1"]
[TimeControl "5400+30"]

1. e4 {[%emt 0:17:10]} c5 {[%emt 0:00:00]} 2. Nc3 {[%emt 0:00:12]} Nc6 {[%emt 0:00:04]} 3. g3 {[%emt 0:00:07]} g6 {[%emt 0:00:07]} 4. Bg2 {[%emt 0:00:03]} Bg7 {[%emt 0:00:05]} 5. d3 {[%emt 0:00:16]} e5 {[%emt 0:05:52]} 6. f4 {[%emt 0:04:20]} d6 {[%emt 0:00:35]} 7. Nf3 {[%emt 0:00:18]} Nge7 {[%emt 0:03:22]} 8. O-O {[%emt 0:00:14]} O-O {[%emt 0:01:43]} 9. Be3 {[%emt 0:02:00]} Nd4 {[%emt 0:07:12]} 10. Qd2 {[%emt 0:01:34]} Bg4 {[%emt 0:02:18]} 11. Ng5 {[%emt 0:09:04]} f6 {[%emt 0:20:21]} 12. Nf3 {[%emt 0:12:04]} Qd7 {[%emt 0:01:22]} 13. Rae1 {[%emt 0:01:28]} Be6 {[%emt 0:14:37]} 14. a3 {[%emt 0:03:51]} Rae8 {[%emt 0:11:30]} 15. Kh1 {[%emt 0:01:23]} b6 {[%emt 0:00:12]} 16. b4 {[%emt 0:01:36]} Rc8 {[%emt 0:01:50]} 17. bxc5 {[%emt 0:02:38]} bxc5 {[%emt 0:00:52]} 18. Rb1 {[%emt 0:03:46]} Rb8 {[%emt 0:00:27]} 19. Ng1 {[%emt 0:06:26]} Rb6 {[%emt 0:09:24]} 20. Rxb6 {[%emt 0:00:11]} axb6 {[%emt 0:00:00]} 21. Rb1 {[%emt 0:00:10]} Qa7 {[%emt 0:05:59]} 22. a4 {[%emt 0:12:31]} Qa5 {[%emt 0:00:05]} 23. Nb5 {[%emt 0:07:36]} Qxa4 {[%emt 0:02:47]} 24. Nxd6 {[%emt 0:03:48]} Qc6 {[%emt 0:03:45]} 25. Bxd4 {[%emt 0:01:28]} cxd4 {[%emt 0:00:35]} 26. Nb5 {[%emt 0:00:02]} Bh6 {[%emt 0:02:57]} 27. Qb4 {[%emt 0:02:44]} Nc8 {[%emt 0:01:15]} 28. Rb2 {[%emt 0:01:20]} Qc5 {[%emt 0:03:12]} 29. Qxc5 {[%emt 0:02:13]} bxc5 {[%emt 0:00:00]} 30. Nc7 {[%emt 0:02:03]} Bd7 {[%emt 0:00:59]} 31. Na6 {[%emt 0:00:26]} c4 {[%emt 0:00:25]} 32. Nc5 {[%emt 0:00:10]} Bg4 {[%emt 0:01:26]} 33. Bf3 {[%emt 0:02:25]} Bxf3+ {[%emt 0:00:14]} 34. Nxf3 {[%emt 0:00:02]} cxd3 {[%emt 0:00:25]} 35. cxd3 {[%emt 0:00:15]} exf4 {[%emt 0:00:04]} 36. gxf4 {[%emt 0:00:08]} Re8 {[%emt 0:01:01]} 37. Nd7 {[%emt 0:00:27]} Kf7 {[%emt 0:00:33]} 38. e5 {[%emt 0:00:59]} Bxf4 {[%emt 0:00:44]} 39. Nxf6 {[%emt 0:00:04]} Rd8 {[%emt 0:00:11]} 40. Nxh7 {[%emt 0:00:35]} Ke6 {[%emt 0:00:12]} 41. Nhg5+ {[%emt 0:00:12]} Kf5 {[%emt 0:00:39]} 42. Rg2 {[%emt 0:00:17]} Rd5 {[%emt 0:00:57]} 43. Nh4+ {[%emt 0:01:25]} Kxe5 {[%emt 0:00:05]} 44. Nxg6+ {[%emt 0:00:18]} Kf5 {[%emt 0:00:39]} 45. Nh4+ {[%emt 0:00:30]} Ke5 {[%emt 0:00:29]} 46. Nhf3+ {[%emt 0:00:38]} Kf5 {[%emt 0:00:47]} 47. Ne4 {[%emt 0:01:00]} Nd6 {[%emt 0:00:24]} 48. Nh4+ {[%emt 0:00:29]} Ke6 {[%emt 0:00:00]} 49. Rg6+ {[%emt 0:00:19]} Ke7 {[%emt 0:00:06]} 50. Rg4 {[%emt 0:01:00]} Be3 {[%emt 0:01:08]} 51. Rg7+ {[%emt 0:00:02]} Kd8 {[%emt 0:00:11]} 52. Rg8+ {[%emt 0:01:01]} Kc7 {[%emt 0:00:30]} 53. Rg7+ {[%emt 0:00:02]} Kd8 {[%emt 0:00:13]} 54. Rg8+ {[%emt 0:01:01]} Kc7 {[%emt 0:00:07]} 55. Rg7+ {[%emt 0:00:07]} 1/2-1/2

[Event "8th RTU Open 2018"]
[Site "Riga"]
[Date "2018.08.08"]
[Round "4"]
[White "Pershin, Denis"]
[Black "Gorodetzky, Matan"]
[Result "0-1"]
[ECO "A40"]
[WhiteElo "2403"]
[BlackElo "2231"]
[Annotator "NA"]
[PlyCount "117"]
[EventDate "2018.08.06"]
[EventType "swiss"]
[EventCountry "LAT"]
[SourceTitle "playchess.com"]
[Source "ChessBase"]
[SourceQuality "1"]
[TimeControl "5400+30"]

1. d4 {[%emt 0:05:45]} e6 {[%emt 0:00:00]} 2. Bf4 {[%emt 0:00:10]} d5 {[%emt 0:00:00]} 3. e3 {[%emt 0:01:13]} Nf6 {[%emt 0:00:45]} 4. Nd2 {[%emt 0:00:16]} c5 {[%emt 0:01:43]} 5. c3 {[%emt 0:00:06]} Nc6 {[%emt 0:00:21]} 6. Ngf3 {[%emt 0:00:08]} cxd4 {[%emt 0:01:37]} 7. exd4 {[%emt 0:00:08]} Nh5 {[%emt 0:00:07]} 8. Be3 {[%emt 0:13:31]} Bd6 {[%emt 0:01:40]} 9. g3 {[%emt 0:01:29]} O-O {[%emt 0:06:46]} 10. Ne5 {[%emt 0:10:19]} g6 {[%emt 0:01:32]} 11. Nd3 {[%emt 0:00:53]} f6 {[%emt 0:11:52]} 12. Bg2 {[%emt 0:00:45]} Ne7 {[%emt 0:08:22]} 13. f4 {[%emt 0:01:43]} b6 {[%emt 0:04:56]} 14. O-O {[%emt 0:04:13]} Ba6 {[%emt 0:03:39]} 15. Nf3 {[%emt 0:00:05]} Qd7 {[%emt 0:01:11]} 16. Re1 {[%emt 0:00:20]} Ng7 {[%emt 0:04:34]} 17. Bf2 {[%emt 0:00:32]} Rae8 {[%emt 0:02:44]} 18. a4 {[%emt 0:01:44]} Qc7 {[%emt 0:05:17]} 19. Qd2 {[%emt 0:03:45]} Bc4 {[%emt 0:02:45]} 20. Reb1 {[%emt 0:08:10]} Rc8 {[%emt 0:00:42]} 21. Be1 {[%emt 0:01:01]} Nef5 {[%emt 0:03:40]} 22. b3 {[%emt 0:06:19]} Ba6 {[%emt 0:00:02]} 23. Rc1 {[%emt 0:02:39]} Be7 {[%emt 0:01:07]} 24. Qe2 {[%emt 0:01:48]} Nd6 {[%emt 0:01:34]} 25. Nd2 {[%emt 0:00:01]} Qd7 {[%emt 0:00:21]} 26. a5 {[%emt 0:04:48]} Bb5 {[%emt 0:01:08]} 27. axb6 {[%emt 0:03:31]} axb6 {[%emt 0:01:04]} 28. Qf3 {[%emt 0:00:01]} Rc7 {[%emt 0:01:15]} 29. Bf2 {[%emt 0:05:39]} Rfc8 {[%emt 0:01:01]} 30. Nb2 {[%emt 0:00:18]} h5 {[%emt 0:02:46]} 31. Rc2 {[%emt 0:11:00]} Nb7 {[%emt 0:11:55]} 32. c4 {[%emt 0:01:31]} Bb4 {[%emt 0:00:56]} 33. Qd3 {[%emt 0:01:36]} Nf5 {[%emt 0:00:25]} 34. Rac1 {[%emt 0:01:11]} Ba6 {[%emt 0:00:11]} 35. Na4 {[%emt 0:03:48]} Ba5 {[%emt 0:01:46]} 36. Qf3 {[%emt 0:05:32]} dxc4 {[%emt 0:03:17]} 37. d5 {[%emt 0:00:39]} cxb3 {[%emt 0:14:36]} 38. Rxc7 {[%emt 0:01:40]} Rxc7 {[%emt 0:00:05]} 39. Rxc7 {[%emt 0:00:21]} Qxc7 {[%emt 0:00:01]} 40. Nxb3 {[%emt 0:00:01]} Qc2 {[%emt 0:01:25]} 41. h3 {[%emt 0:01:19]} Bc4 {[%emt 0:00:49]} 42. dxe6 {[%emt 0:00:19]} Qxb3 {[%emt 0:00:25]} 43. Qxb7 {[%emt 0:00:03]} Bxe6 {[%emt 0:00:32]} 44. Qc6 {[%emt 0:00:50]} Kg7 {[%emt 0:00:30]} 45. g4 {[%emt 0:00:47]} hxg4 {[%emt 0:00:18]} 46. hxg4 {[%emt 0:00:01]} Ne3 {[%emt 0:00:36]} 47. Qc7+ {[%emt 0:00:58]} Bf7 {[%emt 0:00:04]} 48. g5 {[%emt 0:00:31]} Nxg2 {[%emt 0:01:03]} 49. gxf6+ {[%emt 0:00:02]} Kh6 {[%emt 0:00:23]} 50. Kxg2 {[%emt 0:00:32]} Qd5+ {[%emt 0:00:23]} 51. Kg3 {[%emt 0:00:25]} Qd3+ {[%emt 0:00:08]} 52. Kh2 {[%emt 0:00:13]} Qd5 {[%emt 0:00:48]} 53. Qc8 {[%emt 0:00:28]} Bg8 {[%emt 0:00:45]} 54. Qf8+ {[%emt 0:01:09]} Kh5 {[%emt 0:00:01]} 55. Qg7 {[%emt 0:00:01]} Qd2 {[%emt 0:01:04]} 56. Qh8+ {[%emt 0:00:44]} Kg4 {[%emt 0:00:01]} 57. Qh4+ {[%emt 0:00:50]} Kf3 {[%emt 0:00:04]} 58. Qg3+ {[%emt 0:00:07]} Ke2 {[%emt 0:00:36]} 59. Nxb6 0-1

[Event "8th RTU Open 2018"]
[Site "Riga"]
[Date "2018.08.08"]
[Round "4"]
[White "Martin, Julian"]
[Black "Valner, Uku"]
[Result "1/2-1/2"]
[ECO "C17"]
[WhiteElo "2392"]
[BlackElo "2227"]
[Annotator "NA"]
[PlyCount "77"]
[EventDate "2018.08.06"]
[EventType "swiss"]
[EventCountry "LAT"]
[SourceTitle "playchess.com"]
[Source "ChessBase"]
[SourceQuality "1"]
[TimeControl "5400+30"]

1. e4 {[%emt 0:03:05]} e6 {[%emt 0:00:00]} 2. d4 {[%emt 0:00:12]} d5 {[%emt 0:00:07]} 3. Nc3 {[%emt 0:00:06]} Bb4 {[%emt 0:00:47]} 4. e5 {[%emt 0:00:05]} c5 {[%emt 0:00:17]} 5. a3 {[%emt 0:00:05]} Ba5 {[%emt 0:00:38]} 6. b4 {[%emt 0:00:05]} cxd4 {[%emt 0:00:11]} 7. Qg4 {[%emt 0:00:06]} Ne7 {[%emt 0:01:05]} 8. bxa5 {[%emt 0:00:06]} dxc3 {[%emt 0:00:04]} 9. Qxg7 {[%emt 0:00:10]} Rg8 {[%emt 0:00:04]} 10. Qxh7 {[%emt 0:00:07]} Nbc6 {[%emt 0:03:21]} 11. Nf3 {[%emt 0:00:10]} Qc7 {[%emt 0:00:17]} 12. Bf4 {[%emt 0:00:07]} Bd7 {[%emt 0:02:53]} 13. a6 {[%emt 0:00:06]} b6 {[%emt 0:01:48]} 14. Bg3 {[%emt 0:02:37]} O-O-O {[%emt 0:10:46]} 15. Bd3 {[%emt 0:00:06]} Rdf8 {[%emt 0:07:11]} 16. Qh6 {[%emt 0:03:55]} Na5 {[%emt 0:16:50]} 17. Qf4 {[%emt 0:19:01]} Qc5 {[%emt 0:09:13]} 18. Qb4 {[%emt 0:19:37]} Nac6 {[%emt 0:08:21]} 19. Qf4 {[%emt 0:02:32]} d4 {[%emt 0:09:32]} 20. Be4 {[%emt 0:04:39]} Qc4 {[%emt 0:06:15]} 21. Rd1 {[%emt 0:03:43]} Qxa6 {[%emt 0:01:35]} 22. Nxd4 {[%emt 0:00:09]} Nxd4 {[%emt 0:07:27]} 23. Rxd4 {[%emt 0:01:04]} Bb5 {[%emt 0:00:14]} 24. a4 {[%emt 0:00:34]} Rd8 {[%emt 0:00:55]} 25. Bd3 {[%emt 0:03:50]} Bxd3 {[%emt 0:01:24]} 26. cxd3 {[%emt 0:00:14]} Nf5 {[%emt 0:06:17]} 27. Rc4+ {[%emt 0:00:25]} Kb8 {[%emt 0:02:27]} 28. Qe4 {[%emt 0:01:45]} Rc8 {[%emt 0:00:37]} 29. Rxc8+ {[%emt 0:04:19]} Rxc8 {[%emt 0:00:36]} 30. O-O {[%emt 0:01:04]} Rd8 {[%emt 0:00:27]} 31. Rc1 {[%emt 0:01:51]} Qxd3 {[%emt 0:00:18]} 32. Qxd3 {[%emt 0:00:27]} Rxd3 {[%emt 0:00:01]} 33. Kf1 {[%emt 0:01:43]} Nd4 {[%emt 0:00:18]} 34. Bf4 {[%emt 0:02:15]} Nb3 {[%emt 0:00:40]} 35. Rc2 {[%emt 0:00:07]} Nd4 {[%emt 0:00:04]} 36. Rc1 {[%emt 0:00:26]} Nb3 {[%emt 0:04:21]} 37. Rc2 {[%emt 0:02:34]} Nd4 {[%emt 0:00:28]} 38. Rc1 {[%emt 0:00:37]} Nb3 {[%emt 0:00:06]} 39. Rc2 {[%emt 0:00:20]} 1/2-1/2

[Event "8th RTU Open 2018"]
[Site "Riga"]
[Date "2018.08.08"]
[Round "4"]
[White "Krupenski, Juri"]
[Black "Holland, James P"]
[Result "1/2-1/2"]
[ECO "D85"]
[WhiteElo "2390"]
[BlackElo "2212"]
[Annotator "NA"]
[PlyCount "134"]
[EventDate "2018.08.06"]
[EventType "swiss"]
[EventCountry "LAT"]
[SourceTitle "playchess.com"]
[Source "ChessBase"]
[SourceQuality "1"]
[TimeControl "5400+30"]

1. d4 {[%emt 0:00:00]} Nf6 {[%emt 0:00:00]} 2. c4 {[%emt 0:00:03]} g6 {[%emt 0:00:00]} 3. Nc3 {[%emt 0:00:21]} d5 {[%emt 0:00:04]} 4. cxd5 {[%emt 0:00:22]} Nxd5 {[%emt 0:00:06]} 5. g3 {[%emt 0:02:27]} Bg7 {[%emt 0:03:51]} 6. Bg2 {[%emt 0:00:07]} Nxc3 {[%emt 0:01:49]} 7. bxc3 {[%emt 0:00:07]} c5 {[%emt 0:00:14]} 8. e3 {[%emt 0:09:20]} Qa5 {[%emt 0:06:11]} 9. Ne2 {[%emt 0:12:49]} cxd4 {[%emt 0:07:14]} 10. exd4 {[%emt 0:00:25]} O-O {[%emt 0:00:24]} 11. O-O {[%emt 0:00:11]} Nd7 {[%emt 0:08:33]} 12. Qb3 {[%emt 0:02:15]} Nb6 {[%emt 0:03:25]} 13. Nf4 {[%emt 0:20:05]} e5 {[%emt 0:04:20]} 14. dxe5 {[%emt 0:00:25]} Qxe5 {[%emt 0:25:01]} 15. Ba3 {[%emt 0:08:22]} Re8 {[%emt 0:00:10]} 16. Rac1 {[%emt 0:01:14]} Rb8 {[%emt 0:08:32]} 17. c4 {[%emt 0:03:50]} Bf5 {[%emt 0:03:21]} 18. Rfd1 {[%emt 0:03:29]} Nc8 {[%emt 0:08:18]} 19. Bb4 {[%emt 0:12:22]} Qb2 {[%emt 0:01:19]} 20. Re1 {[%emt 0:01:01]} Ne7 {[%emt 0:02:51]} 21. Bd6 {[%emt 0:02:32]} Rbd8 {[%emt 0:00:34]} 22. c5 {[%emt 0:04:48]} Nc6 {[%emt 0:03:15]} 23. Nd5 {[%emt 0:05:20]} Qxb3 {[%emt 0:05:05]} 24. axb3 {[%emt 0:00:08]} Rxe1+ {[%emt 0:00:18]} 25. Rxe1 {[%emt 0:00:05]} Bf8 {[%emt 0:00:14]} 26. Nf6+ {[%emt 0:01:18]} Kh8 {[%emt 0:00:15]} 27. Bxf8 {[%emt 0:01:07]} Rxf8 {[%emt 0:00:05]} 28. Bxc6 {[%emt 0:00:52]} bxc6 {[%emt 0:00:04]} 29. Re7 {[%emt 0:01:03]} Be6 {[%emt 0:01:29]} 30. b4 {[%emt 0:00:38]} Rb8 {[%emt 0:00:54]} 31. Re8+ {[%emt 0:02:22]} Rxe8 {[%emt 0:00:04]} 32. Nxe8 {[%emt 0:00:03]} Kg8 {[%emt 0:00:42]} 33. f3 {[%emt 0:00:49]} Kf8 {[%emt 0:00:15]} 34. Nd6 {[%emt 0:00:25]} Ke7 {[%emt 0:01:23]} 35. Kf2 {[%emt 0:00:10]} a6 {[%emt 0:04:57]} 36. Ke3 {[%emt 0:00:21]} Bd5 {[%emt 0:00:05]} 37. Kf4 {[%emt 0:00:23]} f6 {[%emt 0:00:07]} 38. h4 {[%emt 0:00:11]} Ke6 {[%emt 0:01:00]} 39. Ke3 {[%emt 0:02:10]} Bb3 {[%emt 0:00:46]} 40. Kd4 {[%emt 0:01:47]} Bd1 {[%emt 0:00:04]} 41. f4 {[%emt 0:00:10]} Be2 {[%emt 0:00:04]} 42. Ke4 {[%emt 0:00:14]} Bd1 {[%emt 0:00:18]} 43. Ne8 {[%emt 0:00:55]} Ke7 {[%emt 0:00:31]} 44. Nc7 {[%emt 0:00:19]} Kd7 {[%emt 0:00:19]} 45. Na8 {[%emt 0:00:20]} Ke6 {[%emt 0:00:26]} 46. Nb6 {[%emt 0:00:13]} Be2 {[%emt 0:00:14]} 47. Na4 {[%emt 0:00:13]} Bd1 {[%emt 0:01:45]} 48. Nc3 {[%emt 0:00:15]} Bc2+ {[%emt 0:00:16]} 49. Ke3 {[%emt 0:00:17]} Kf5 {[%emt 0:00:41]} 50. Ne2 {[%emt 0:00:35]} Kg4 {[%emt 0:00:15]} 51. Kf2 {[%emt 0:00:09]} Be4 {[%emt 0:00:46]} 52. Nd4 {[%emt 0:01:09]} Bd5 {[%emt 0:00:07]} 53. Ne2 {[%emt 0:01:54]} Bf3 {[%emt 0:00:56]} 54. Nc1 {[%emt 0:00:46]} Be4 {[%emt 0:00:33]} 55. Nb3 {[%emt 0:00:14]} Bh1 {[%emt 0:00:32]} 56. Nd4 {[%emt 0:02:25]} Bd5 {[%emt 0:00:06]} 57. Ne2 {[%emt 0:00:36]} Bf3 {[%emt 0:00:19]} 58. Nc3 {[%emt 0:00:22]} Bh1 {[%emt 0:00:13]} 59. Kg1 {[%emt 0:00:57]} Bf3 {[%emt 0:00:27]} 60. Kh2 {[%emt 0:01:28]} h5 {[%emt 0:00:55]} 61. Nb1 {[%emt 0:00:08]} Be4 {[%emt 0:00:42]} 62. Nd2 {[%emt 0:00:07]} Bd5 {[%emt 0:00:12]} 63. Nb1 {[%emt 0:00:20]} Be4 {[%emt 0:00:40]} 64. Nd2 {[%emt 0:00:05]} Bd5 {[%emt 0:00:03]} 65. Nb1 {[%emt 0:00:03]} Be4 {[%emt 0:00:06]} 66. Nd2 {[%emt 0:00:06]} Bd5 67. Nb1 Kf3 1/2-1/2

[Event "8th RTU Open 2018"]
[Site "Riga"]
[Date "2018.08.08"]
[Round "4"]
[White "Gorbatov, Alexej"]
[Black "Meskovs, Nikita"]
[Result "0-1"]
[ECO "B44"]
[WhiteElo "2389"]
[BlackElo "2524"]
[Annotator "ChessBase"]
[PlyCount "54"]
[EventDate "2018.08.06"]
[EventType "swiss"]
[EventCountry "LAT"]
[SourceTitle "playchess.com"]
[Source "ChessBase"]
[SourceQuality "1"]
[TimeControl "5400+30"]

1. e4 {[%emt 0:02:47]} c5 {[%emt 0:01:33]} 2. Nf3 {[%emt 0:00:18]} e6 {[%emt 0:00:08]} 3. d4 {[%emt 0:02:19]} cxd4 {[%emt 0:00:04]} 4. Nxd4 {[%emt 0:00:03]} Nc6 {[%emt 0:00:07]} 5. Nb5 {[%emt 0:01:17]} d6 {[%emt 0:00:05]} 6. c4 {[%emt 0:00:07]} Nf6 {[%emt 0:00:07]} 7. N5c3 {[%emt 0:00:15]} Be7 {[%emt 0:00:26]} 8. Be2 {[%emt 0:00:17]} b6 {[%emt 0:02:53]} 9. O-O {[%emt 0:04:34]} Bb7 {[%emt 0:00:18]} 10. Be3 {[%emt 0:01:38]} O-O {[%emt 0:02:17]} 11. Nd2 {[%emt 0:01:41]} Rc8 {[%emt 0:00:38]} 12. Qa4 {[%emt 0:03:12]} Nd7 {[%emt 0:08:51]} 13. b4 {[%emt 0:17:30]} a6 {[%emt 0:21:47]} 14. Rac1 {[%emt 0:02:42]} Bf6 {[%emt 0:01:50]} 15. Rfd1 {[%emt 0:03:52]} Qe7 {[%emt 0:05:40]} 16. Nf1 {[%emt 0:04:22]} Nce5 {[%emt 0:11:11]} 17. Qb3 {[%emt 0:00:40]} Ng6 {[%emt 0:01:00]} 18. Ng3 {[%emt 0:03:46]} Be5 {[%emt 0:02:18]} 19. Nh5 {[%emt 0:05:40]} Qh4 {[%emt 0:10:30]} 20. g3 {[%emt 0:00:58]} Qh3 {[%emt 0:04:50]} 21. f4 {[%emt 0:00:50]} Nh4 {[%emt 0:02:48]} 22. Bf1 {[%emt 0:03:06]} Nf3+ {[%emt 0:00:24]} 23. Kf2 {[%emt 0:00:02]} Qxh5 {[%emt 0:01:20]} 24. fxe5 {[%emt 0:00:44]} Qxh2+ {[%emt 0:01:47]} 25. Bg2 {[%emt 0:00:00]} Nfxe5 {[%emt 0:00:20]} 26. Bf4 {[%emt 0:01:23]} Ng4+ {[%emt 0:00:24]} 27. Kf1 {[%emt 0:00:07]} e5 {[%emt 0:00:13]} 0-1